fUSD/lending_fUSD_20260202
["ID","MTS","AMOUNT","RATE_DAILY","PERIOD"]
[404359571,1770076087166,-5000.01,8.528e-05,2]
[404359572,1770076087309,-5000.01,8.528e-05,2]
[404359573,1770076087620,-5000.01,8.528e-05,2]
[404359574,1770076087775,-5000.01,8.528e-05,2]
[404359575,1770076090427,-5000.01,8.528e-05,2]
[404359576,1770076090546,-5000.01,8.528e-05,2]
[404359577,1770076090646,-5000.01,8.528e-05,2]
[404359578,1770076090852,-5000.01,8.528e-05,2]
[404359579,1770076090919,-5000.01,8.528e-05,2]
[404359580,1770076093204,-5000.01,8.528e-05,2]
[404359581,1770076093319,-5000.01,8.528e-05,2]
[404359582,1770076093440,-5000.01,8.528e-05,2]
[404359583,1770076093580,-5000.01,8.528e-05,2]
[404359584,1770076096249,-5000.01,8.528e-05,2]
[404359585,1770076096370,-5000.01,8.528e-05,2]
[404359586,1770076096536,-5000.01,8.528e-05,2]
[404359587,1770076096669,-5000.01,8.528e-05,2]
[404359588,1770076096820,-5000.01,8.528e-05,2]
[404359589,1770076096953,-5000.01,8.528e-05,2]
[404359590,1770076108514,-5000.01,8.528e-05,2]
[404359591,1770076108734,-5000.01,8.528e-05,2]
[404359592,1770076108872,-5000.01,8.528e-05,2]
[404359593,1770076111318,-5000.01,8.528e-05,2]
[404359594,1770076111445,-5000.01,8.528e-05,2]
[404359595,1770076111626,-5000.01,8.528e-05,2]
[404359596,1770076111754,-5020.4313,8.528e-05,2]
[404359597,1770076111878,-5000.01,8.528e-05,2]
[404359598,1770076111902,-10000.01,8.528e-05,2]
[404359599,1770076111993,-5000.01,8.528e-05,2]
[404359600,1770076112035,-10000.01,8.528e-05,2]
[404359601,1770076112140,-5000.01,8.528e-05,2]
[404359602,1770076112309,-10000.01,8.528e-05,2]
[404359603,1770076112447,-10000.01,8.528e-05,2]
[404359604,1770076112647,-10000.01,8.528e-05,2]
[404359605,1770076112848,-10000.01,8.528e-05,2]
[404359606,1770076113009,-10000.01,8.528e-05,2]
[404359607,1770076114340,-5000.01,8.528e-05,2]
[404359608,1770076114402,-5000.01,8.528e-05,2]
[404359609,1770076114439,-10000.01,8.528e-05,2]
[404359610,1770076114536,-5000.01,8.528e-05,2]
[404359611,1770076114576,-10000.01,8.528e-05,2]
[404359612,1770076114725,-10000.01,8.528e-05,2]
[404359613,1770076116649,-11996.0,8.528e-05,2]
[404359614,1770076117620,-10000.01,8.528e-05,2]
[404359615,1770076117845,-10000.01,8.528e-05,2]
[404359616,1770076118015,-10000.01,8.528e-05,2]
[404359617,1770076118148,-10000.01,8.528e-05,2]
[404359618,1770076118290,-10000.01,8.528e-05,2]
[404359619,1770076118429,-10000.01,8.528e-05,2]
[404359620,1770076120475,-10000.01,8.528e-05,2]
[404359621,1770076120953,-10000.01,8.528e-05,2]
[404359622,1770076120974,-10000.01,8.528e-05,2]
[404359623,1770076121012,-10000.01,8.528e-05,2]
[404359624,1770076121586,-52.26478063,8.528e-05,2]
[404359625,1770076123711,-1226.60944355,8.528e-05,2]
[404359626,1770076131292,1129.60682712,8.528e-05,2]
[404359627,1770076131544,500.0,8.528e-05,2]
[404359628,1770076131640,1183.71644684,8.528e-05,2]
[404359629,1770076150638,5000.01,8.519e-05,2]
[404359630,1770076150672,5000.01,8.519e-05,2]
[404359631,1770076150703,5000.01,8.519e-05,2]
[404359632,1770076150732,5000.01,8.519e-05,2]
[404359633,1770076150759,5000.01,8.519e-05,2]
[404359634,1770076150794,10000.01,8.519e-05,2]
[404359635,1770076150830,10000.01,8.519e-05,2]
[404359636,1770076150864,10000.01,8.519e-05,2]
[404359637,1770076150899,10000.01,8.519e-05,2]
[404359638,1770076150934,10000.01,8.519e-05,2]
[404359639,1770076150970,10000.01,8.519e-05,2]
[404359640,1770076151006,10000.01,8.519e-05,2]
[404359641,1770076151043,10000.01,8.519e-05,2]
[404359642,1770076151079,10000.01,8.519e-05,2]
[404359643,1770076151114,10000.01,8.519e-05,2]
[404359644,1770076158288,-7186.68672604,8.519e-05,2]
[404359645,1770076158614,-10000.01,8.519e-05,2]
[404359646,1770076158767,-10000.01,8.519e-05,2]
[404359647,1770076159665,-5000.01,8.519e-05,2]
[404359648,1770076159788,-5000.01,8.519e-05,2]
[404359649,1770076159906,-5000.01,8.519e-05,2]
[404359650,1770076160040,-5000.01,8.519e-05,2]
[404359651,1770076160215,-5000.01,8.519e-05,2]
[404359652,1770076160335,-10000.01,8.519e-05,2]
[404359653,1770076160482,-10000.01,8.519e-05,2]
[404359654,1770076160606,-10000.01,8.519e-05,2]
[404359655,1770076160746,-10000.01,8.519e-05,2]
[404359656,1770076160897,-10000.01,8.519e-05,2]
[404359657,1770076161245,-10000.01,8.519e-05,2]
[404359658,1770076161280,-10000.01,8.519e-05,2]
[404359659,1770076163770,-10000.01,8.519e-05,2]
[404359660,1770076164019,-10000.01,8.519e-05,2]
[404359661,1770076164174,-10000.01,8.519e-05,2]
[404359662,1770076166838,-10000.01,8.519e-05,2]
[404359663,1770076166922,-10000.01,8.519e-05,2]
[404359664,1770076167249,-10000.01,8.519e-05,2]
[404359665,1770076167415,-10000.01,8.519e-05,2]
[404359666,1770076167559,-10000.01,8.519e-05,2]
[404359667,1770076167751,-10000.01,8.519e-05,2]
[404359668,1770076167872,-10000.01,8.519e-05,2]
[404359669,1770076169476,-10000.01,8.519e-05,2]
[404359670,1770076169624,-10000.01,8.519e-05,2]
[404359671,1770076169814,-10000.01,8.519e-05,2]
[404359672,1770076170879,170.03110366,0.00013355,5]
[404359673,1770076172656,-10000.01,8.519e-05,2]
[404359674,1770076173002,-10000.01,8.519e-05,2]
[404359675,1770076173172,-10000.01,8.519e-05,2]
[404359676,1770076173339,-10000.01,8.519e-05,2]
[404359677,1770076173484,-10000.01,8.519e-05,2]
[404359678,1770076173671,-10000.01,8.519e-05,2]
[404359679,1770076173823,-10000.01,8.519e-05,2]
[404359680,1770076175518,-10000.01,8.519e-05,2]
[404359681,1770076176080,-10000.01,8.519e-05,2]
[404359682,1770076176784,-10000.01,8.519e-05,2]
[404359683,1770076178739,-10000.01,8.519e-05,2]
[404359684,1770076178961,-10000.01,8.519e-05,2]
[404359685,1770076179144,-10000.01,8.519e-05,2]
[404359686,1770076179300,-10000.01,8.519e-05,2]
[404359687,1770076179450,-10000.01,8.519e-05,2]
[404359688,1770076179603,-10000.01,8.519e-05,2]
[404359689,1770076179766,-10000.01,8.519e-05,2]
[404359690,1770076182200,-10000.01,8.519e-05,2]
[404359691,1770076182434,-10000.01,8.519e-05,2]
[404359692,1770076182994,-10000.01,8.519e-05,2]
[404359693,1770076184900,-10000.01,8.519e-05,2]
[404359694,1770076185133,-10000.01,8.519e-05,2]
[404359695,1770076185313,-10000.01,8.519e-05,2]
[404359696,1770076185465,-10000.01,8.519e-05,2]
[404359697,1770076185604,-10000.01,8.519e-05,2]
[404359698,1770076185745,-10000.01,8.519e-05,2]
[404359699,1770076185905,-10000.01,8.519e-05,2]
[404359700,1770076187745,-10000.01,8.519e-05,2]
[404359701,1770076187902,-10000.01,8.519e-05,2]
[404359702,1770076188038,-10000.01,8.519e-05,2]
[404359703,1770076190965,-10000.01,8.519e-05,2]
[404359704,1770076191246,-10000.01,8.519e-05,2]
[404359705,1770076191395,-10000.01,8.519e-05,2]
[404359706,1770076191562,-10000.01,8.519e-05,2]
[404359707,1770076191692,-10000.01,8.519e-05,2]
[404359708,1770076191842,-10000.01,8.519e-05,2]
[404359709,1770076191991,-10000.01,8.519e-05,2]
[404359710,1770076193850,-10000.01,8.519e-05,2]
[404359711,1770076194024,-10000.01,8.519e-05,2]
[404359712,1770076194165,-10000.01,8.519e-05,2]
[404359713,1770076197126,-10000.01,8.519e-05,2]
[404359714,1770076197321,-10000.01,8.519e-05,2]
[404359715,1770076197490,-10000.01,8.519e-05,2]
[404359716,1770076197674,-10000.01,8.519e-05,2]
[404359717,1770076197882,-10000.01,8.519e-05,2]
[404359718,1770076198021,-10000.01,8.519e-05,2]
[404359719,1770076198177,-10000.01,8.519e-05,2]
[404359720,1770076200513,-10000.01,8.519e-05,2]
[404359721,1770076200701,-10000.01,8.519e-05,2]
[404359722,1770076203027,-1200.0,8.518e-05,2]
[404359723,1770076203072,-300.0,8.518e-05,2]
[404359724,1770076203175,-7000.01,8.519e-05,2]
[404359725,1770076203234,-10000.01,8.519e-05,2]
[404359726,1770076203391,-221.0,8.519e-05,2]
[404359727,1770076203768,-9558.01,8.519e-05,2]
[404359728,1770076203877,-10000.01,8.519e-05,2]
[404359729,1770076203922,-10000.01,8.519e-05,2]
[404359730,1770076203968,-10000.01,8.519e-05,2]
[404359731,1770076204065,-10000.01,8.519e-05,2]
[404359732,1770076204359,-10000.01,8.519e-05,2]
[404359736,1770076206286,-183.74,8.5e-05,2]
[404359780,1770076226703,-10000.01,8.519e-05,2]
[404359782,1770076227016,-10000.01,8.519e-05,2]
[404359783,1770076227324,-10000.01,8.519e-05,2]
[404359785,1770076227642,-10000.01,8.519e-05,2]
[404359786,1770076227920,-10000.01,8.519e-05,2]
[404359788,1770076228240,-10000.01,8.519e-05,2]
[404359790,1770076228575,-10000.01,8.519e-05,2]
[404359792,1770076228894,-10000.01,8.519e-05,2]
[404359794,1770076229232,-10000.01,8.519e-05,2]
[404359795,1770076229563,-10000.01,8.519e-05,2]
[404359807,1770076231695,-248478.07103448,8.519e-05,2]
[404359808,1770076231708,-50100.03411246,8.519e-05,2]
[404359809,1770076231719,-348.2360598,8.519e-05,2]
[404359811,1770076231748,-2775.90264677,8.519e-05,2]
[404359812,1770076231759,-16276.87627361,8.519e-05,2]
[404359813,1770076231842,-3581.50303572,8.519e-05,2]
[404359828,1770076232017,-42799.83037,8.519e-05,2]
[404359831,1770076232034,-4494.88431907,8.519e-05,2]
[404359982,1770076237781,-2087398.88542205,8.519e-05,2]
[404359983,1770076237790,-13604.79922065,8.528e-05,2]
[404359984,1770076237799,-1000.0,8.528e-05,2]
[404359985,1770076237809,-214.64051587,8.528e-05,2]
[404359986,1770076237818,-250.24316891,8.528e-05,2]
[404359987,1770076237828,-2546.2994,8.529e-05,2]
[404359988,1770076237838,-2500.0,8.529e-05,2]
[404359989,1770076237847,-786601.8201,8.529e-05,2]
[404359990,1770076237857,-300.0,8.606e-05,2]
[404359991,1770076237866,-16585.1238248,8.619e-05,2]
[404359992,1770076237876,-500.0,8.628e-05,2]
[404359993,1770076237885,-1012.36,8.628e-05,2]
[404359994,1770076237894,-394.6393378,8.628e-05,2]
[404359995,1770076237903,-500.0,8.628e-05,2]
[404359996,1770076237912,-500.0,8.628e-05,2]
[404359997,1770076237923,-500.0,8.628e-05,2]
[404359998,1770076237941,-500.0,8.628e-05,2]
[404359999,1770076237952,-500.0,8.628e-05,2]
[404360000,1770076237962,-500.0,8.628e-05,2]
[404360001,1770076237971,-500.0,8.628e-05,2]
[404360002,1770076237983,-500.0,8.628e-05,2]
[404360003,1770076237992,-500.0,8.628e-05,2]
[404360004,1770076238003,-500.0,8.628e-05,2]
[404360005,1770076238012,-500.0,8.628e-05,2]
[404360006,1770076238022,-500.0,8.628e-05,2]
[404360007,1770076238033,-500.0,8.628e-05,2]
[404360008,1770076238043,-500.0,8.628e-05,2]
[404360009,1770076238052,-500.0,8.628e-05,2]
[404360010,1770076238062,-500.0,8.628e-05,2]
[404360011,1770076238072,-500.0,8.628e-05,2]
[404360012,1770076238082,-500.0,8.628e-05,2]
[404360014,1770076238092,-500.0,8.628e-05,2]
[404360016,1770076238102,-500.0,8.628e-05,2]
[404360018,1770076238112,-500.0,8.628e-05,2]
[404360019,1770076238122,-500.0,8.628e-05,2]
[404360020,1770076238131,-500.0,8.628e-05,2]
[404360021,1770076238141,-500.0,8.628e-05,2]
[404360022,1770076238151,-500.0,8.628e-05,2]
[404360024,1770076238161,-500.0,8.628e-05,2]
[404360025,1770076238170,-500.0,8.628e-05,2]
[404360026,1770076238180,-500.0,8.628e-05,2]
[404360027,1770076238190,-277.39001139,8.628e-05,2]
[404360028,1770076238200,-500.0,8.628e-05,2]
[404360029,1770076238210,-500.0,8.628e-05,2]
[404360030,1770076238219,-500.0,8.628e-05,2]
[404360031,1770076238229,-500.0,8.628e-05,2]
[404360032,1770076238239,-500.0,8.628e-05,2]
[404360033,1770076238248,-500.0,8.628e-05,2]
[404360034,1770076238257,-500.0,8.628e-05,2]
[404360035,1770076238267,-500.0,8.628e-05,2]
[404360036,1770076238276,-500.0,8.628e-05,2]
[404360037,1770076238285,-412.4812457,8.628e-05,2]
[404360038,1770076238299,-500.0,8.628e-05,2]
[404360039,1770076238308,-500.0,8.628e-05,2]
[404360040,1770076238318,-500.0,8.628e-05,2]
[404360041,1770076238328,-500.0,8.628e-05,2]
[404360042,1770076238339,-500.0,8.628e-05,2]
[404360043,1770076238348,-500.0,8.628e-05,2]
[404360044,1770076238358,-500.0,8.628e-05,2]
[404360045,1770076238368,-602.40158828,8.628e-05,2]
[404360046,1770076238381,-500.0,8.628e-05,2]
[404360047,1770076238391,-500.0,8.628e-05,2]
[404360048,1770076238401,-416.61944427,8.628e-05,2]
[404360049,1770076238412,-499.99999999,8.628e-05,2]
[404360050,1770076238423,-500.0,8.628e-05,2]
[404360051,1770076238434,-554.21647829,8.628e-05,2]
[404360052,1770076238443,-554.21647829,8.628e-05,2]
[404360053,1770076238455,-554.21647829,8.628e-05,2]
[404360054,1770076238465,-554.21647829,8.628e-05,2]
[404360055,1770076238474,-554.21647829,8.628e-05,2]
[404360056,1770076238484,-554.21647829,8.628e-05,2]
[404360057,1770076238498,-554.21647829,8.628e-05,2]
[404360058,1770076238507,-554.21647829,8.628e-05,2]
[404360059,1770076238517,-554.21647829,8.628e-05,2]
[404360060,1770076238527,-554.21647829,8.628e-05,2]
[404360061,1770076238537,-554.21647829,8.628e-05,2]
[404360062,1770076238546,-554.21647829,8.628e-05,2]
[404360063,1770076238557,-554.21647829,8.628e-05,2]
[404360064,1770076238566,-554.21647829,8.628e-05,2]
[404360065,1770076238576,-554.21647829,8.628e-05,2]
[404360066,1770076238586,-224.36804676,8.628e-05,2]
[404360067,1770076238595,-160.29,8.629e-05,2]
[404360068,1770076238605,-152.45052678,8.629e-05,2]
[404360069,1770076238615,-9999.99,8.629e-05,2]
[404360070,1770076238624,-9999.99,8.629e-05,2]
[404360071,1770076238635,-150.99,8.629e-05,2]
[404360072,1770076238645,-9999.99,8.629e-05,2]
[404360073,1770076238655,-1182.49,8.629e-05,2]
[404360074,1770076238664,-14009.2,8.629e-05,2]
[404360075,1770076238673,-3240.17,8.629e-05,2]
[404360076,1770076238684,-348.93,8.629e-05,2]
[404360077,1770076238697,-19999.99,8.629e-05,2]
[404360078,1770076238707,-1539.28,8.629e-05,2]
[404360079,1770076238717,-9999.99,8.629e-05,2]
[404360080,1770076238728,-4999.99,8.629e-05,2]
[404360081,1770076238741,-999.99,8.629e-05,2]
[404360082,1770076238750,-34911.99,8.629e-05,2]
[404360083,1770076238760,-1201.39,8.629e-05,2]
[404360084,1770076238769,-433.69,8.629e-05,2]
[404360085,1770076238778,-499.99,8.629e-05,2]
[404360086,1770076238788,-299.99,8.629e-05,2]
[404360087,1770076238797,-500.0,8.629e-05,2]
[404360088,1770076238807,-33288.2505,8.629e-05,2]
[404360089,1770076238817,-7121.68,8.629e-05,2]
[404360090,1770076238827,-9999.99,8.629e-05,2]
[404360091,1770076238836,-150.99,8.629e-05,2]
[404360092,1770076238846,-1470.33,8.629e-05,2]
[404360093,1770076238856,-152.45052678,8.633e-05,2]
[404360094,1770076238866,-420.49,8.784e-05,2]
[404360095,1770076238875,-500.0,8.902e-05,2]
[404360096,1770076238888,-1012.36,8.902e-05,2]
[404360097,1770076238899,-196.3,8.934e-05,2]
[404360098,1770076238910,-365.71841486,8.944e-05,2]
[404360099,1770076238920,-329343.28893839,8.975e-05,2]
[404360100,1770076238930,-1000.0,9.027e-05,2]
[404360101,1770076238940,-281.0,9.061e-05,2]
[404360102,1770076238950,-393.32,9.172e-05,2]
[404360103,1770076238960,-500.0,9.176e-05,2]
[404360104,1770076238970,-1012.36,9.176e-05,2]
[404360105,1770076238980,-243.4435957,9.231e-05,2]
[404360106,1770076238989,-420.49,9.246e-05,2]
[404360107,1770076238999,-1282.0,9.285e-05,2]
[404360108,1770076239009,-301.87,9.342e-05,2]
[404360109,1770076239019,-150.0,9.366e-05,2]
[404360110,1770076239029,-500.0,9.366e-05,2]
[404360111,1770076239039,-150.0,9.366e-05,2]
[404360112,1770076239048,-150.0,9.366e-05,2]
[404360113,1770076239058,-150.0,9.366e-05,2]
[404360114,1770076239068,-150.96565967,9.366e-05,2]
[404360115,1770076239078,-500.0,9.366e-05,2]
[404360116,1770076239091,-500.0,9.366e-05,2]
[404360117,1770076239101,-570.0,9.366e-05,2]
[404360118,1770076239111,-479.0,9.366e-05,2]
[404360119,1770076239121,-150.0,9.366e-05,2]
[404360120,1770076239130,-500.0,9.366e-05,2]
[404360121,1770076239139,-787.0,9.366e-05,2]
[404360122,1770076239149,-500.0,9.366e-05,2]
[404360123,1770076239159,-500.0,9.366e-05,2]
[404360124,1770076239168,-150.0,9.366e-05,2]
[404360125,1770076239178,-500.0,9.366e-05,2]
[404360126,1770076239188,-150.0,9.366e-05,2]
[404360127,1770076239198,-159.52608092,9.366e-05,2]
[404360128,1770076239207,-500.0,9.366e-05,2]
[404360129,1770076239217,-2028.0,9.366e-05,2]
[404360130,1770076239226,-988.0,9.366e-05,2]
[404360131,1770076239236,-500.0,9.366e-05,2]
[404360132,1770076239254,-464.0,9.366e-05,2]
[404360133,1770076239270,-166.03343311,9.366e-05,2]
[404360134,1770076239288,-500.0,9.366e-05,2]
[404360135,1770076239301,-500.0,9.366e-05,2]
[404360136,1770076239313,-500.0,9.366e-05,2]
[404360137,1770076239325,-1027.0,9.366e-05,2]
[404360138,1770076239338,-832.0,9.366e-05,2]
[404360139,1770076239352,-150.0,9.366e-05,2]
[404360140,1770076239364,-150.0,9.366e-05,2]
[404360141,1770076239379,-500.0,9.366e-05,2]
[404360142,1770076239392,-1680.0,9.37e-05,2]
[404360143,1770076239405,-301.0,9.37e-05,2]
[404360144,1770076239420,-300.0,9.38e-05,2]
[404360145,1770076239433,-255.0,9.38e-05,2]
[404360146,1770076239446,-420.0,9.38e-05,2]
[404360147,1770076239459,-500.0,9.381e-05,2]
[404360148,1770076239470,-300.0,9.393e-05,2]
[404360149,1770076239483,-294.62907968,9.393e-05,2]
[404360150,1770076239496,-500.0,9.393e-05,2]
[404360151,1770076239508,-150.38249848,9.421e-05,2]
[404360152,1770076239521,-500.0,9.421e-05,2]
[404360153,1770076239533,-150.0,9.421e-05,2]
[404360154,1770076239546,-500.0,9.421e-05,2]
[404360155,1770076239559,-500.0,9.421e-05,2]
[404360156,1770076239571,-570.0,9.421e-05,2]
[404360157,1770076239583,-479.0,9.421e-05,2]
[404360158,1770076239595,-150.0,9.421e-05,2]
[404360159,1770076239609,-500.0,9.421e-05,2]
[404360160,1770076239621,-787.0,9.421e-05,2]
[404360161,1770076239633,-500.0,9.421e-05,2]
[404360162,1770076239654,-500.0,9.421e-05,2]
[404360163,1770076239671,-150.0,9.421e-05,2]
[404360164,1770076239685,-500.0,9.421e-05,2]
[404360165,1770076239697,-150.0,9.421e-05,2]
[404360166,1770076239710,-500.0,9.421e-05,2]
[404360167,1770076239725,-2028.0,9.421e-05,2]
[404360168,1770076239747,-988.0,9.421e-05,2]
[404360169,1770076239762,-500.0,9.421e-05,2]
[404360170,1770076239777,-464.0,9.421e-05,2]
[404360171,1770076239791,-500.0,9.421e-05,2]
[404360172,1770076239804,-500.0,9.421e-05,2]
[404360173,1770076239815,-500.0,9.421e-05,2]
[404360174,1770076239826,-1027.0,9.421e-05,2]
[404360175,1770076239838,-832.0,9.421e-05,2]
[404360176,1770076239851,-500.0,9.421e-05,2]
[404360177,1770076239867,-500.0,9.422e-05,2]
[404360178,1770076239879,-300.0,9.422e-05,2]
[404360179,1770076239890,-250.0,9.442e-05,2]
[404360180,1770076239900,-500.0,9.446e-05,2]
[404360181,1770076239911,-300.0,9.448e-05,2]
[404360182,1770076239923,-250.0,9.448e-05,2]
[404360183,1770076239936,-193.0,9.448e-05,2]
[404360184,1770076239952,-500.0,9.45e-05,2]
[404360185,1770076239967,-1012.36,9.45e-05,2]
[404360186,1770076239978,-500.0,9.476e-05,2]
[404360187,1770076239989,-150.0,9.476e-05,2]
[404360188,1770076240000,-500.0,9.476e-05,2]
[404360189,1770076240013,-500.0,9.476e-05,2]
[404360190,1770076240025,-570.0,9.476e-05,2]
[404360191,1770076240038,-479.0,9.476e-05,2]
[404360192,1770076240049,-150.0,9.476e-05,2]
[404360193,1770076240061,-328.08780435,9.476e-05,2]
[404360194,1770076240073,-787.0,9.476e-05,2]
[404360195,1770076240087,-156.23659199,9.476e-05,2]
[404360196,1770076240100,-500.0,9.476e-05,2]
[404360197,1770076240113,-150.0,9.476e-05,2]
[404360198,1770076240134,-500.0,9.476e-05,2]
[404360201,1770076240147,-150.0,9.476e-05,2]
[404360203,1770076240162,-500.0,9.476e-05,2]
[404360206,1770076240176,-2028.0,9.476e-05,2]
[404360208,1770076240189,-988.0,9.476e-05,2]
[404360211,1770076240203,-500.0,9.476e-05,2]
[404360213,1770076240216,-464.0,9.476e-05,2]
[404360216,1770076240229,-500.0,9.476e-05,2]
[404360218,1770076240241,-500.0,9.476e-05,2]
[404360220,1770076240253,-500.0,9.476e-05,2]
[404360222,1770076240265,-1027.0,9.476e-05,2]
[404360225,1770076240277,-832.0,9.476e-05,2]
[404360227,1770076240289,-500.0,9.476e-05,2]
[404360229,1770076240301,-234.50786848,9.497e-05,2]
[404360232,1770076240313,-150.0,9.497e-05,2]
[404360234,1770076240325,-500.0,9.497e-05,2]
[404360235,1770076240337,-500.0,9.497e-05,2]
[404360238,1770076240349,-150.10178686,9.497e-05,2]
[404360240,1770076240360,-150.0,9.497e-05,2]
[404360242,1770076240372,-150.86853195,9.497e-05,2]
[404360244,1770076240388,-150.0,9.497e-05,2]
[404360247,1770076240400,-500.0,9.497e-05,2]
[404360249,1770076240412,-380.27908286,9.52e-05,2]
[404360251,1770076240424,-500.0,9.53e-05,2]
[404360253,1770076240436,-150.0,9.53e-05,2]
[404360256,1770076240448,-500.0,9.53e-05,2]
[404360258,1770076240460,-500.0,9.53e-05,2]
[404360260,1770076240471,-570.0,9.53e-05,2]
[404360262,1770076240482,-479.0,9.53e-05,2]
[404360265,1770076240495,-150.0,9.53e-05,2]
[404360267,1770076240512,-787.0,9.53e-05,2]
[404360270,1770076240524,-500.0,9.53e-05,2]
[404360272,1770076240537,-500.0,9.53e-05,2]
[404360274,1770076240549,-150.0,9.53e-05,2]
[404360277,1770076240562,-500.0,9.53e-05,2]
[404360279,1770076240574,-2028.0,9.53e-05,2]
[404360281,1770076240585,-988.0,9.53e-05,2]
[404360283,1770076240597,-500.0,9.53e-05,2]
[404360286,1770076240609,-464.0,9.53e-05,2]
[404360288,1770076240621,-500.0,9.53e-05,2]
[404360290,1770076240632,-500.0,9.53e-05,2]
[404360293,1770076240644,-1027.0,9.53e-05,2]
[404360295,1770076240656,-500.0,9.53e-05,2]
[404360297,1770076240667,-832.0,9.53e-05,2]
[404360299,1770076240679,-500.0,9.53e-05,2]
[404360301,1770076240692,-150.0,9.552e-05,2]
[404360303,1770076240704,-500.0,9.552e-05,2]
[404360304,1770076240719,-500.0,9.552e-05,2]
[404360305,1770076240731,-150.0,9.552e-05,2]
[404360306,1770076240743,-150.0,9.552e-05,2]
[404360307,1770076240755,-500.0,9.552e-05,2]
[404360308,1770076240767,-196.3,9.573e-05,2]
[404360309,1770076240778,-500.0,9.585e-05,2]
[404360310,1770076240789,-291.47561802,9.585e-05,2]
[404360312,1770076240801,-570.0,9.585e-05,2]
[404360313,1770076240813,-500.0,9.585e-05,2]
[404360316,1770076240825,-479.0,9.585e-05,2]
[404360318,1770076240837,-150.0,9.585e-05,2]
[404360320,1770076240847,-500.0,9.585e-05,2]
[404360322,1770076240859,-787.0,9.585e-05,2]
[404360325,1770076240870,-500.0,9.585e-05,2]
[404360327,1770076240882,-150.0,9.585e-05,2]
[404360329,1770076240893,-500.0,9.585e-05,2]
[404360332,1770076240908,-500.0,9.585e-05,2]
[404360334,1770076240919,-2028.0,9.585e-05,2]
[404360336,1770076240930,-988.0,9.585e-05,2]
[404360339,1770076240942,-500.0,9.585e-05,2]
[404360341,1770076240953,-464.0,9.585e-05,2]
[404360343,1770076240966,-500.0,9.585e-05,2]
[404360346,1770076240977,-500.0,9.585e-05,2]
[404360348,1770076240989,-1027.0,9.585e-05,2]
[404360350,1770076241000,-500.0,9.585e-05,2]
[404360352,1770076241012,-832.0,9.585e-05,2]
[404360355,1770076241023,-500.0,9.585e-05,2]
[404360357,1770076241035,-166.3626574,9.607e-05,2]
[404360359,1770076241046,-249.274,9.607e-05,2]
[404360361,1770076241058,-500.0,9.607e-05,2]
[404360364,1770076241070,-150.0,9.607e-05,2]
[404360366,1770076241081,-150.0,9.607e-05,2]
[404360368,1770076241095,-500.0,9.607e-05,2]
[404360371,1770076241106,-500.0,9.64e-05,2]
[404360373,1770076241118,-570.0,9.64e-05,2]
[404360375,1770076241129,-500.0,9.64e-05,2]
[404360377,1770076241140,-479.0,9.64e-05,2]
[404360379,1770076241151,-155.65422092,9.64e-05,2]
[404360381,1770076241162,-500.0,9.64e-05,2]
[404360383,1770076241173,-787.0,9.64e-05,2]
[404360385,1770076241184,-500.0,9.64e-05,2]
[404360388,1770076241195,-250.0,9.64e-05,2]
[404360390,1770076241206,-500.0,9.64e-05,2]
[404360392,1770076241217,-500.0,9.64e-05,2]
[404360394,1770076241228,-2028.0,9.64e-05,2]
[404360396,1770076241239,-988.0,9.64e-05,2]
[404360399,1770076241251,-500.0,9.64e-05,2]
[404360401,1770076241262,-464.0,9.64e-05,2]
[404360403,1770076241273,-500.0,9.64e-05,2]
[404360405,1770076241286,-500.0,9.64e-05,2]
[404360406,1770076241298,-1027.0,9.64e-05,2]
[404360407,1770076241309,-500.0,9.64e-05,2]
[404360408,1770076241320,-832.0,9.64e-05,2]
[404360409,1770076241331,-500.0,9.64e-05,2]
[404360410,1770076241341,-583.41072536,9.661e-05,2]
[404360411,1770076241352,-150.0,9.661e-05,2]
[404360412,1770076241363,-282.25840253,9.661e-05,2]
[404360413,1770076241375,-500.0,9.661e-05,2]
[404360414,1770076241392,-9999.99,9.67e-05,2]
[404360415,1770076241404,-29999.99,9.67e-05,2]